bitfinex/quotes_ETHUSD_20260129
["timestamp","ask_amount","ask_price","bid_price","bid_amount"]
[1769717705002,2.01673363,2789.9,2789.3,0.89626912]
[1769717705202,6.31809744,2790.0,2789.3,0.88480278]
[1769717705581,6.31809744,2790.0,2789.1,0.89631505]
[1769717705787,0.89608946,2789.9,2789.1,0.89634649]
[1769717707116,0.89608946,2789.9,2789.1,13.64541817]
[1769717709276,0.89608946,2789.9,2789.1,13.62219999]
[1769717709471,1.07984346,2789.8,2789.1,13.58838423]
[1769717709677,1.07984346,2789.8,2789.1,13.56620761]
[1769717709910,1.07984346,2789.8,2789.1,13.54353313]
[1769717711015,3.58397247,2790.5,2789.3,12.74907168]
[1769717711016,0.89589679,2790.5,2789.3,12.74907168]
[1769717711591,1.6478862,2790.6,2789.3,12.74907168]
[1769717712314,0.8968862,2790.6,2789.3,12.74907168]
[1769717712611,1.6478862,2790.6,2789.3,12.74907168]
[1769717714195,1.6478862,2790.6,2789.5,12.74907168]
[1769717714390,2.80293044,2790.6,2789.7,12.72612631]
[1769717714716,2.05191606,2790.6,2789.7,12.66931051]
[1769717714918,2.05191606,2790.6,2789.7,12.63513487]
[1769717715122,0.001,2790.4,2789.7,12.62400685]
[1769717715291,0.001,2790.4,2789.9,12.73774317]
[1769717715629,3.58256122,2791.3,2789.9,12.73732191]
[1769717715794,6.31809744,2790.7,2789.9,12.71534623]
[1769717716198,7.21396086,2790.7,2789.9,13.61141008]
[1769717716398,1.07971899,2790.6,2789.9,13.61141008]
[1769717716600,7.21396086,2790.7,2790.0,12.74907168]
[1769717717145,6.31809744,2790.4,2789.7,12.74907168]
[1769717717326,1.38280974,2790.3,2789.5,13.64528905]
[1769717717623,1.38280974,2790.3,2789.5,12.74907168]
[1769717717917,1.38280974,2790.3,2789.8,12.74907168]
[1769717718121,0.751,2790.3,2789.8,12.74907168]
[1769717718305,0.751,2790.3,2789.8,13.64519322]
[1769717718506,0.89592822,2790.5,2789.8,13.64519322]
[1769717718695,1.64692822,2790.5,2789.8,12.74907168]
[1769717718894,0.52303874,2790.4,2789.8,12.74907168]
[1769717722025,0.52303874,2790.4,2789.8,13.64518598]
[1769717723604,4.33436723,2790.7,2789.8,13.63366266]
[1769717724428,0.89586468,2790.6,2789.8,13.63366266]
[1769717725032,0.89586468,2790.6,2789.8,13.63366957]
[1769717725237,0.89586468,2790.6,2789.8,13.62192087]
[1769717725411,0.89586468,2790.6,2789.8,13.61091928]
[1769717725610,0.89586468,2790.6,2789.8,12.68053526]
[1769717725808,0.52302319,2790.5,2789.7,0.88458556]
[1769717726014,0.52302319,2790.5,2789.7,0.85118092]
[1769717726625,0.52302319,2790.5,2789.8,0.89611808]
[1769717727136,0.52302319,2790.5,2790.0,0.002]
[1769717727528,0.001,2790.4,2790.0,0.002]
[1769717729308,0.001,2790.4,2790.0,13.54600254]
[1769717730725,0.001,2790.4,2790.0,0.002]
[1769717731833,0.50133934,2790.4,2790.0,0.002]
[1769717732038,0.001,2790.4,2790.0,0.002]
[1769717739358,0.001,2790.2,2790.0,0.002]
[1769717742568,0.001,2790.4,2790.0,13.8906097]
[1769717744036,1.64585783,2790.7,2790.1,13.8886097]
[1769717744262,0.52290725,2790.6,2790.1,13.8886097]
[1769717744430,0.89582531,2790.8,2790.1,13.8886097]
[1769717744766,0.75,2790.8,2790.1,13.8886097]
[1769717744937,0.89578485,2790.9,2790.1,13.8886097]
[1769717746243,0.89578485,2790.9,2790.3,13.8886097]
[1769717746445,1.41865874,2790.9,2790.3,13.8886097]
[1769717749171,0.52287389,2790.9,2790.3,14.7845655]
[1769717749352,0.89576949,2790.9,2790.3,13.8886097]
[1769717750867,0.89576949,2790.9,2790.0,0.002]
[1769717750868,0.89576949,2790.9,2790.0,14.78665285]
[1769717752185,0.001,2790.7,2790.0,14.78665285]
[1769717754067,0.89576949,2790.9,2790.1,13.8886097]
[1769717757366,0.75,2791.3,2790.3,12.98708341]
[1769717758876,0.89567211,2791.2,2790.5,12.98708341]
[1769717760252,17.1611698,2791.4,2790.5,12.98708341]
[1769717760253,0.89561596,2791.4,2790.5,12.98708341]
[1769717760454,0.75,2791.6,2790.6,12.98708341]
[1769717760658,0.75,2791.6,2790.8,12.98708341]
[1769717760856,1.64557519,2791.6,2790.8,12.98708341]
[1769717761151,1.64557519,2791.6,2790.8,13.88287546]
[1769717762376,0.26301856,2791.9,2791.0,12.98708341]
[1769717762574,0.89535632,2792.2,2791.2,12.98708341]
[1769717763268,0.89535632,2792.2,2791.2,13.8827531]
[1769717763959,6.3102555,2792.0,2791.1,1.92973389]
[1769717764186,0.001,2791.4,2791.0,12.98708341]
[1769717764384,19.88895123,2792.0,2791.0,12.98708341]
[1769717764577,19.88895123,2792.0,2791.0,13.88281778]
[1769717765676,14.47414327,2791.9,2791.0,12.98708341]
[1769717765870,6.3102555,2791.7,2790.8,13.88285696]
[1769717766074,6.3102555,2791.7,2790.8,12.98708341]
[1769717766869,14.47414327,2791.9,2790.8,13.88287466]
[1769717771492,0.89544754,2791.9,2790.8,13.88287466]
[1769717772861,13.57869573,2791.8,2790.6,3.58342337]
[1769717773071,13.57869573,2791.8,2790.8,0.89579553]
[1769717773290,13.57869573,2791.8,2790.8,13.88287894]
[1769717773799,6.3102555,2791.9,2790.8,13.88287894]
[1769717774203,19.88895123,2791.9,2790.8,12.98708341]
[1769717774381,19.88895123,2791.9,2790.8,13.88288146]
[1769717775519,0.89547961,2791.8,2790.8,13.88288146]
[1769717776376,0.89547961,2791.8,2791.0,0.002]
[1769717776580,0.001,2791.6,2791.0,0.002]
[1769717776776,0.75,2791.5,2791.0,0.002]
[1769717778110,0.75,2791.5,2791.0,12.98908341]
[1769717778417,0.001,2791.6,2791.0,14.37777156]
[1769717779583,0.001,2791.6,2791.0,12.98908341]
[1769717780609,0.75,2791.7,2791.0,12.98908341]
[1769717780912,0.75,2791.7,2791.0,13.88481616]
[1769717781365,13.57869573,2792.0,2791.0,0.89773275]
[1769717781502,1e-08,2791.8,2791.1,12.98708341]
[1769717783337,5.5842555,2791.4,2790.8,0.002]
[1769717783481,5.5824555,2791.4,2790.8,0.002]
[1769717783682,0.55824555,2791.3,2790.8,0.002]
[1769717783895,0.55619549,2791.3,2790.8,0.002]
[1769717784916,5.5824555,2791.4,2790.8,0.002]
[1769717785115,23.47068842,2792.0,2790.9,12.98708341]
[1769717785284,1.64546644,2791.9,2790.9,12.98708341]
[1769717785485,12.71879796,2791.6,2790.8,0.002]
[1769717785685,6.3102555,2791.4,2790.8,0.002]
[1769717785937,12.71879796,2791.0,2790.2,0.002]
[1769717786094,19.02905346,2790.8,2790.2,0.002]
[1769717786292,0.75,2791.3,2790.6,0.89586086]
[1769717786604,0.75,2791.3,2790.6,14.4916145]
[1769717786926,19.02905346,2791.5,2790.6,0.89586086]
[1769717787226,12.71879796,2791.4,2790.5,0.89589679]
[1769717789743,12.71879796,2791.4,2790.7,0.002]
[1769717793893,0.75,2791.3,2790.7,0.002]
[1769717795936,12.71879796,2791.4,2790.7,0.002]
[1769717796805,13.17371321,2791.6,2790.7,0.002]
[1769717797010,13.92371321,2791.6,2790.7,13.20729948]
[1769717797911,13.92371321,2791.6,2790.7,0.002]
[1769717799759,13.17371321,2791.4,2790.7,0.002]
[1769717799917,0.08219423,2792.3,2790.9,13.20529948]
[1769717799918,13.17371321,2792.0,2790.9,13.20529948]
[1769717800104,13.92371321,2791.9,2790.9,13.20529948]
[1769717800501,13.17371321,2791.9,2790.9,13.20529948]
[1769717800734,13.17371321,2791.9,2791.0,14.61540948]
[1769717801035,13.17371321,2791.7,2790.8,0.89580048]
[1769717801835,13.17371321,2791.5,2790.7,0.89783025]
[1769717802137,0.001,2791.2,2790.7,0.002]
[1769717802306,0.001,2791.2,2790.8,1.32072995]
[1769717803004,13.17371321,2791.5,2790.8,1.32072995]
[1769717803205,0.75,2791.8,2790.8,1.32072995]
[1769717803405,13.17371321,2791.7,2790.7,13.20729948]
[1769717805538,13.17371321,2791.4,2790.7,0.89783249]
[1769717807739,13.17371321,2791.4,2790.7,0.002]
[1769717813065,13.92371321,2791.7,2790.7,13.20729948]
[1769717814155,13.92371321,2791.7,2790.8,0.89580048]
[1769717814360,0.001,2791.2,2790.8,0.89580048]
[1769717816061,13.78979499,2791.2,2790.7,0.89781704]
[1769717816256,13.78979499,2791.2,2790.7,0.002]
[1769717818663,13.78879499,2792.2,2791.1,19.23032698]
[1769717818875,0.001,2792.1,2791.3,6.3102555]
[1769717819054,13.78979499,2792.1,2791.2,14.84310418]
[1769717820128,0.001,2792.1,2791.2,14.84310418]
[1769717822359,0.001,2792.5,2791.5,12.92007148]
[1769717822567,0.001,2792.4,2791.7,12.92007148]
[1769717822932,0.001,2792.5,2791.8,12.92007148]
[1769717823341,0.30415525,2792.8,2792.3,6.30622296]
[1769717823649,0.08219423,2793.7,2792.4,12.92007148]
[1769717823650,13.78879499,2793.7,2792.4,12.92007148]
[1769717823971,13.78879499,2793.7,2791.8,6.30622296]
[1769717823972,0.001,2793.6,2792.6,6.30622296]
[1769717824185,0.001,2793.6,2792.8,0.89515898]
[1769717825449,13.78979499,2793.6,2792.7,0.89518432]
[1769717825671,13.78879499,2793.5,2792.7,0.89518432]
[1769717825866,0.001,2793.4,2792.7,0.89518432]
[1769717826170,0.001,2793.7,2792.7,12.92007148]
[1769717827555,13.78979499,2793.7,2792.7,12.92007148]
[1769717828277,13.78979499,2793.7,2792.8,0.89515898]
[1769717830252,0.001,2793.7,2792.8,13.81523046]
[1769717830451,0.001,2793.7,2792.9,14.65965812]
[1769717831178,13.78979499,2793.7,2792.6,3.58084889]
[1769717831377,13.78979499,2793.7,2792.8,0.89515545]
[1769717831378,13.78879499,2793.4,2792.8,0.89515545]
[1769717831567,13.78979499,2793.7,2792.8,0.89515545]
[1769717831876,0.001,2793.5,2792.8,0.89515545]
[1769717832272,13.78979499,2793.5,2792.5,0.89525514]
[1769717833942,13.78979499,2793.5,2791.7,12.92007148]
[1769717834177,13.78879499,2793.3,2792.4,0.89528439]
[1769717834360,13.78879499,2793.3,2791.9,16.50182583]
[1769717834564,0.001,2793.2,2792.0,12.92007148]
[1769717834743,13.78979499,2793.2,2792.0,12.92007148]
[1769717834942,13.78979499,2793.2,2791.8,0.89547961]
[1769717835147,13.78879499,2793.0,2791.8,0.89547961]
[1769717836947,13.78879499,2792.8,2791.6,3.58191847]
[1769717837143,13.78879499,2792.8,2791.5,0.89557585]
[1769717837372,13.78879499,2792.6,2791.5,0.89557585]
[1769717837577,13.78879499,2792.6,2791.6,1.73979508]
[1769717838548,13.78879499,2792.4,2791.2,1.9230327]
[1769717838771,13.78879499,2792.4,2791.4,0.89560415]
[1769717838983,13.78879499,2792.2,2791.7,0.002]
[1769717840054,0.001,2792.1,2791.7,0.002]
[1769717841460,14.68376169,2793.4,2791.8,12.92007148]
[1769717841663,14.68376169,2793.4,2791.9,2.11135699]
[1769717842170,0.08219423,2793.3,2791.9,2.11135699]
[1769717842481,13.78879499,2792.8,2791.7,0.002]
[1769717842681,0.08219423,2792.7,2791.7,0.002]
[1769717842886,13.78879499,2792.6,2791.7,0.002]
[1769717843075,13.78879499,2792.4,2791.7,0.002]
[1769717844753,13.78879499,2792.8,2791.7,0.002]
[1769717845482,13.83770667,2793.1,2791.7,13.67583336]
[1769717846873,14.7327815,2793.1,2791.8,0.89547961]
[1769717847081,13.83770667,2793.1,2791.8,0.89547961]
[1769717847389,13.83770667,2793.1,2791.9,1.81532314]
[1769717849089,13.83770667,2793.1,2792.0,0.89541547]
[1769717849392,14.73276981,2793.1,2792.0,0.89541547]
[1769717849591,0.08219423,2793.0,2792.0,0.89541547]
[1769717849813,13.83770667,2792.9,2792.0,0.89541547]
[1769717849961,13.83770667,2792.9,2792.0,1.34312321]
[1769717853286,13.83870667,2792.9,2792.0,1.34312321]
[1769717853591,13.86608577,2793.2,2792.1,13.25093241]
[1769717853795,13.86708577,2793.5,2792.1,13.25093241]
[1769717854097,13.86708577,2793.5,2792.2,14.71033797]
[1769717854479,0.001,2793.5,2792.2,14.71033797]
[1769717855066,13.86708577,2793.5,2792.2,14.71033797]
[1769717855398,13.86708577,2793.5,2792.3,0.89531927]
[1769717856571,14.76202149,2793.5,2792.3,0.89531927]
[1769717856772,13.86608577,2793.3,2792.3,3.17214041]
[1769717859839,13.86608577,2793.3,2792.3,16.42307282]
[1769717860176,13.86608577,2793.3,2792.3,3.17214041]
[1769717860400,13.86608577,2793.3,2792.3,0.89531927]
[1769717862311,13.86708577,2793.5,2792.4,13.25093241]
[1769717863007,13.86708577,2793.5,2792.3,0.89531927]
[1769717863505,13.86708577,2793.5,2792.3,14.14625168]
[1769717865690,13.86708577,2793.5,2792.5,0.002]
[1769717865915,13.86708577,2793.5,2792.5,13.25293241]
[1769717867992,13.86708577,2793.5,2792.6,0.89522308]
[1769717869419,13.86608577,2793.1,2791.9,0.89744454]
[1769717869591,0.08219423,2793.2,2791.9,0.89744454]
[1769717869592,13.86608577,2792.9,2791.9,0.002]
[1769717869791,14.61608577,2792.9,2791.9,0.89744151]
[1769717870004,13.86608577,2792.7,2791.9,0.002]
[1769717870525,13.86608577,2792.4,2791.6,0.002]
[1769717871581,13.83108577,2792.4,2791.6,0.002]
[1769717875312,14.61608577,2792.6,2791.6,0.002]
[1769717877217,15.51131101,2792.6,2791.6,0.002]
[1769717878619,15.51131101,2792.6,2791.8,0.002]
[1769717878940,13.50070809,2792.2,2791.6,0.002]
[1769717879119,13.50070809,2792.0,2791.6,0.002]
[1769717882227,14.39613649,2792.0,2791.1,0.8957042]
[1769717882600,13.50070809,2792.0,2791.1,0.8957042]
[1769717883337,13.50070809,2791.8,2791.0,0.89572367]
[1769717883628,13.50070809,2791.6,2790.9,0.002]
[1769717884011,0.73408815,2791.7,2790.9,0.002]
[1769717885693,14.23479624,2791.7,2790.9,0.002]
[1769717890267,14.23479624,2791.7,2791.1,0.002]
[1769717890465,0.001,2791.5,2791.1,0.002]
[1769717890665,0.89815598,2791.6,2791.1,0.002]
[1769717891159,13.50070809,2791.5,2791.1,0.002]
[1769717891338,13.50070809,2791.4,2790.9,0.002]
[1769717893287,13.50070809,2791.1,2790.5,0.002]
[1769717893635,13.50070809,2791.4,2790.5,0.002]
[1769717895396,0.89815598,2791.6,2790.5,12.88786318]
[1769717895539,13.50070809,2792.1,2790.6,12.88586318]
[1769717895742,0.68258479,2792.0,2790.6,12.88586318]
[1769717896554,0.68258479,2792.0,2790.8,12.88586318]
[1769717899645,0.68258479,2792.0,2791.0,12.88586318]
[1769717899846,0.68258479,2792.0,2791.1,14.26402634]
[1769717900855,14.25070809,2792.4,2791.2,12.88586318]
[1769717901145,14.25070809,2792.4,2791.1,1.37816316]
[1769717901146,13.50070809,2793.0,2791.8,12.88586318]
[1769717901351,13.50070809,2793.4,2791.8,12.88586318]
[1769717901679,13.50070809,2793.4,2792.1,0.8953834]
[1769717901883,13.50070809,2793.4,2792.1,13.78124658]
[1769717902581,0.001,2792.8,2792.1,13.78124658]
[1769717904262,13.50170809,2793.5,2792.1,13.78124658]
[1769717904461,0.001,2793.5,2792.3,12.88586318]
[1769717906391,0.001,2793.5,2792.5,13.74546422]
[1769717906569,0.74975,2793.7,2792.5,13.74546422]
[1769717907865,0.31100571,2794.0,2792.4,1.6452872]
[1769717907866,0.31100571,2794.0,2793.0,13.74546422]
[1769717908064,13.28076262,2794.7,2793.0,13.74546422]
[1769717908389,0.75,2795.4,2793.0,13.74546422]
[1769717908390,13.28076262,2795.2,2793.8,13.74546422]
[1769717908582,13.28076262,2795.2,2793.9,2.13124871]
[1769717909275,14.17515913,2795.2,2793.9,2.13124871]
[1769717909472,14.17515913,2795.2,2793.7,0.75]
[1769717909676,14.17515307,2795.2,2793.7,0.75]
[1769717910076,13.28076262,2795.2,2793.7,0.75]
[1769717910761,13.28076262,2795.2,2793.8,14.64030279]
[1769717914669,0.001,2795.0,2793.8,14.64030279]
[1769717914883,0.001,2795.0,2793.9,15.21269546]
[1769717915813,0.2918644,2795.5,2794.3,13.31572975]
[1769717916007,12.96519257,2796.0,2794.3,13.31572975]
[1769717916301,13.85933152,2796.0,2794.3,13.31572975]
[1769717916473,12.96519257,2795.9,2794.5,13.31572975]
[1769717918067,12.96519257,2795.9,2794.6,14.21031215]
[1769717919690,0.75,2796.1,2794.6,14.21031215]
[1769717919991,13.71519257,2796.1,2794.6,14.21031215]
[1769717920374,12.96519257,2796.1,2794.7,7.56702287]
[1769717920698,12.96519257,2796.4,2794.8,15.49346325]
[1769717921498,0.749,2796.9,2794.8,15.49346325]
[1769717921499,12.96519257,2796.7,2795.0,13.31572975]
[1769717922411,12.96519257,2796.7,2795.2,13.31572975]
[1769717924103,13.24988317,2797.3,2795.8,13.31572975]
[1769717924310,13.24988317,2797.3,2796.0,13.31572975]
[1769717924509,0.2846906,2797.3,2796.0,13.31572975]
[1769717924751,0.2846906,2797.3,2796.2,13.31572975]
[1769717926211,14.14361811,2797.3,2796.3,0.89403855]
[1769717926520,14.14361599,2797.3,2796.3,0.89403855]
[1769717926714,0.001,2796.5,2796.2,0.89406521]
[1769717927407,12.96519257,2797.2,2796.2,0.89406521]
[1769717928233,12.96519257,2797.2,2795.7,3.57684498]
[1769717928943,12.96519257,2797.2,2795.7,11.14386785]
[1769717929144,12.96519257,2797.2,2795.8,2.44595976]
[1769717929826,13.24988317,2797.3,2795.8,15.76168951]
[1769717930029,12.96519257,2797.9,2796.2,7.56702287]
[1769717930234,12.96519257,2797.7,2796.3,0.89403855]
[1769717930431,12.96519257,2797.5,2796.3,0.89403855]
[1769717931942,0.8935145,2798.0,2796.3,14.2097683]
[1769717932146,13.85870707,2798.0,2796.3,14.2097683]
[1769717933051,1.07991521,2798.6,2796.8,13.31572975]
[1769717933224,0.18658749,2798.6,2797.2,20.88275262]
[1769717933409,13.85845015,2798.8,2797.2,20.88275262]
[1769717934036,13.85845015,2798.8,2797.3,13.31572975]
[1769717934243,12.96519257,2798.4,2796.8,14.20960846]
[1769717934424,12.96519257,2798.3,2796.8,14.20960846]
[1769717935222,12.96519257,2798.2,2796.8,0.89387871]
[1769717936718,13.85862997,2798.2,2796.8,0.89387871]
[1769717937651,14.13080279,2798.8,2796.8,8.46090158]
[1769717937851,14.13063472,2799.3,2797.3,7.56702287]
[1769717938025,14.13063472,2799.3,2796.8,8.46090158]
[1769717938026,14.21282895,2799.3,2796.9,0.1024]
[1769717938232,13.23755431,2799.2,2797.1,7.56702287]
[1769717938427,13.23755431,2798.8,2797.1,7.56702287]
[1769717938614,0.08219423,2798.7,2797.1,7.56702287]
[1769717938949,13.31974854,2798.7,2797.1,7.56702287]
[1769717939118,13.23755431,2798.3,2797.3,0.89371894]
[1769717939722,0.08219423,2798.0,2796.7,13.31572975]
[1769717939963,0.08219423,2798.0,2797.2,0.89374698]
[1769717940247,13.23755431,2798.5,2797.2,0.89374698]
[1769717940619,0.97547797,2798.7,2797.1,0.89377889]
[1769717940620,13.23755431,2798.1,2797.1,0.89377889]
[1769717940818,0.08219423,2798.2,2796.3,13.53269793]
[1769717940819,13.23755431,2797.9,2796.3,13.53269793]
[1769717941042,13.23755431,2797.8,2796.3,13.53269793]
[1769717941231,0.8934865,2798.1,2796.4,0.89400657]
[1769717941546,13.23755431,2798.1,2796.5,15.33517101]
[1769717941716,0.08219423,2798.0,2796.5,15.33517101]
[1769717943320,0.08219423,2797.8,2796.6,0.89394264]
[1769717943521,13.31974854,2797.8,2796.6,0.89394264]
[1769717943838,13.23755431,2797.8,2796.6,0.89394264]
[1769717944663,0.08219423,2797.7,2796.6,0.89394264]
[1769717944865,13.31974854,2797.4,2796.5,0.002]
[1769717945031,13.23755431,2797.3,2796.5,0.89597438]
[1769717945647,14.1312872,2797.3,2796.5,0.002]
[1769717945827,13.23755431,2797.2,2796.5,0.002]
[1769717946029,0.89369508,2797.4,2796.5,0.002]
[1769717946325,13.23755431,2797.6,2796.5,0.002]
[1769717946524,14.13110161,2797.9,2796.5,0.002]
[1769717946751,13.31974854,2797.8,2796.5,0.002]
[1769717947638,0.89359116,2797.7,2796.5,0.002]
[1769717947836,13.23755431,2797.2,2796.5,0.002]
[1769717948256,0.08219423,2797.1,2796.5,0.002]
[1769717948682,13.23755431,2797.5,2796.5,0.002]
[1769717948831,0.89359116,2797.7,2796.5,0.002]
[1769717949329,14.2133397,2797.7,2796.5,0.002]
[1769717949568,13.31974854,2797.5,2796.5,0.002]
[1769717949769,0.749,2797.8,2796.5,0.002]
[1769717950065,0.08219423,2797.4,2796.5,0.002]
[1769717950236,13.23755431,2797.4,2796.5,0.002]
[1769717952031,0.89371894,2797.3,2796.5,0.002]
[1769717952231,0.97591317,2797.3,2796.5,0.002]
[1769717952460,0.89371894,2797.3,2796.7,0.002]
[1769717952663,13.23755431,2797.4,2796.7,0.002]
[1769717952863,0.89364112,2797.6,2796.7,0.002]
[1769717953044,0.97583535,2797.6,2796.7,0.002]
[1769717953244,14.21338966,2797.6,2796.7,0.002]
[1769717954562,1.64257982,2797.8,2796.7,0.002]
[1769717954869,13.23755431,2797.6,2796.8,1.35346979]
[1769717955076,1.64256007,2797.8,2796.7,0.002]
[1769717955373,0.08219423,2797.7,2796.7,0.002]
[1769717955548,13.31974854,2797.7,2796.7,0.002]
[1769717955951,13.31974854,2797.6,2796.7,0.002]
[1769717956361,1.64256083,2797.8,2796.7,0.002]
[1769717956557,0.749,2797.8,2796.7,13.53469793]
[1769717957071,0.08219423,2797.7,2796.7,0.002]
[1769717957650,14.8801139,2797.8,2796.7,0.002]
[1769717958943,0.08219423,2797.7,2796.7,0.002]
[1769717959145,13.23755431,2797.5,2796.7,0.002]
[1769717959567,0.08219423,2797.4,2796.7,0.002]
[1769717960967,0.89368699,2797.4,2796.7,0.002]
[1769717961142,14.21343553,2797.4,2796.5,0.002]
[1769717961351,13.31974854,2797.0,2796.1,0.89410249]
[1769717961560,13.23755431,2796.6,2795.7,0.89420677]
[1769717961787,13.23755431,2796.6,2795.2,3.57751042]
[1769717961788,13.23755431,2796.6,2795.8,0.89419243]
[1769717961988,13.23755431,2796.6,2795.1,13.53269793]
[1769717961989,13.31974854,2796.5,2795.4,0.89431003]
[1769717962176,13.23755431,2796.3,2795.0,3.57777587]
[1769717962492,13.23755431,2796.7,2795.7,0.89420975]
[1769717962691,0.08219423,2796.6,2795.5,0.89426575]
[1769717962990,0.89400657,2796.4,2795.2,0.89439038]
[1769717963185,14.13156088,2796.4,2795.2,0.89439038]
[1769717963383,13.23755431,2796.3,2795.2,0.89439038]
[1769717964486,0.89400657,2796.4,2795.2,0.89439038]
[1769717965086,0.89400657,2796.4,2795.1,3.57756153]
[1769717965492,14.15442246,2796.9,2795.2,13.43671331]
[1769717965698,4.32459773,2796.8,2795.4,13.43671331]
[1769717966056,13.26054375,2796.7,2795.4,13.43671331]
[1769717967387,0.8938879,2796.8,2795.5,14.33100771]
[1769717967587,14.15437907,2797.0,2795.5,14.33100771]
[1769717967792,14.15437907,2797.0,2795.7,13.43671331]
[1769717968716,13.36294375,2798.1,2795.7,13.43671331]
[1769717968872,3.768,2798.9,2797.4,8.16554454]
[1769717969194,13.26054375,2799.0,2797.2,13.43671331]
[1769717969385,14.15372526,2799.0,2797.3,0.89371894]
[1769717969584,13.26054375,2798.5,2797.3,0.89371894]
[1769717970089,0.08219423,2798.4,2797.3,0.89371894]
[1769717970304,13.26054375,2798.5,2797.3,0.89371894]
[1769717970480,4.32109753,2799.5,2797.3,0.89371894]
[1769717970481,13.26054375,2800.9,2798.6,13.43671331]
[1769717970687,13.26054375,2800.9,2797.6,0.2335703]
[1769717970688,0.26293585,2800.6,2798.8,13.43671331]
[1769717970895,17.96054375,2801.4,2800.9,0.18640047]
[1769717971199,17.96054375,2801.4,2800.9,0.13747623]
[1769717971200,0.08219423,2801.1,2800.9,0.13747623]
[1769717972866,0.08219423,2801.3,2800.9,0.13747623]
[1769717973294,0.749,2801.6,2800.9,1.03003681]
[1769717973685,0.749,2801.6,2800.7,3.57052026]
[1769717973686,0.08219423,2800.8,2799.0,17.54815182]
[1769717973884,13.90155218,2801.1,2799.3,13.97552145]
[1769717974068,0.08219423,2800.7,2799.1,2.6479594]
[1769717974274,0.08219423,2800.6,2799.1,2.6479594]
[1769717974691,13.90155218,2800.9,2799.1,2.6479594]
[1769717975001,0.08219423,2800.8,2799.1,2.6479594]
[1769717975197,0.08219423,2800.4,2799.1,0.89314422]
[1769717975401,0.08219423,2800.6,2799.0,3.57263037]
[1769717975570,0.08219423,2800.6,2799.0,17.54815182]
[1769717976505,0.97479666,2800.8,2799.0,17.54815182]
[1769717976681,0.08219423,2800.6,2799.1,2.11207287]
[1769717977512,0.08219423,2800.6,2799.2,0.89311231]
[1769717977700,0.08219423,2800.4,2799.2,0.89311231]
[1769717979300,0.9748192,2800.8,2799.2,0.89311231]
[1769717979499,0.97487873,2800.6,2799.1,3.57244927]
[1769717979707,0.08219423,2800.4,2799.1,3.57244927]
[1769717980038,0.08219423,2799.5,2799.0,3.57244927]
[1769717980203,13.82035795,2800.9,2799.0,3.57244927]
[1769717980411,13.82035795,2800.9,2799.1,13.97552145]
[1769717980583,0.89266667,2800.6,2799.1,13.97552145]
[1769717980909,14.56735795,2800.5,2799.0,3.57244927]
[1769717981789,15.46006738,2800.5,2798.8,3.57244927]
[1769717981997,14.56735795,2800.5,2798.9,13.97552145]
[1769717982199,0.748,2800.5,2798.9,13.97552145]
[1769717982375,13.81935795,2800.2,2798.8,3.57244927]
[1769717983774,0.89282525,2800.1,2798.5,3.5730875]
[1769717984108,14.7121832,2800.1,2798.5,3.5730875]
[1769717985575,13.81935795,2799.5,2798.3,0.89339956]
[1769717985811,14.71239005,2799.5,2797.7,14.86911261]
[1769717986203,14.71239005,2799.5,2797.7,0.89359116]
[1769717986403,13.81935795,2799.4,2797.8,0.44679558]
[1769717987720,0.89308041,2799.3,2797.9,0.89352728]
[1769717988289,14.71243836,2799.3,2797.9,0.89352728]
[1769717989208,14.7120687,2800.5,2798.7,8.16554454]
[1769717989517,14.71205725,2800.5,2798.8,13.97552145]
[1769717989696,14.71205725,2800.5,2798.7,8.16554454]
[1769717989697,13.81935795,2800.3,2798.9,2.2141066]
[1769717989893,13.81935795,2800.3,2799.0,0.89317613]
[1769717991018,14.79420048,2800.7,2799.0,0.89317613]
[1769717991224,13.90155218,2800.7,2799.0,0.89317613]
[1769717991429,13.81935795,2800.7,2799.1,0.44658807]
[1769717991930,13.81935795,2800.7,2799.2,0.89311231]
[1769717993393,13.81935795,2800.5,2799.2,0.89311231]
[1769717995125,13.81935795,2800.5,2799.0,3.57244927]
[1769717995335,0.0196178,2802.1,2800.5,12.83728679]
[1769717995559,0.0196178,2802.1,2800.5,14.93756992]
[1769717995829,0.18622572,2802.0,2800.5,12.83728679]
[1769717996127,0.0196178,2802.1,2800.5,12.83728679]
[1769717996308,0.0196178,2802.1,2800.5,13.58528679]
[1769717997190,0.0196178,2802.1,2800.6,0.89266585]
[1769717997394,0.0196178,2802.1,2800.7,1.80486161]
[1769717998208,1e-08,2802.1,2800.7,1.80486161]
[1769717999840,1e-08,2802.1,2800.8,0.89260211]
[1769718001230,12.9130235,2801.9,2800.8,0.89260211]
[1769718001547,0.08219423,2801.8,2800.8,0.89260211]
[1769718001724,0.08219423,2801.5,2800.8,0.89260211]
[1769718001927,12.99521773,2801.6,2800.5,3.57040845]
[1769718002324,12.99521773,2802.0,2800.5,3.57040845]
[1769718002748,0.001,2801.9,2800.5,3.57040845]
[1769718003055,0.001,2801.9,2800.6,0.44631381]
[1769718003253,0.08319423,2801.9,2800.6,0.44631381]
[1769718003557,12.99621773,2801.9,2800.5,3.57040845]
[1769718005083,0.08219423,2801.3,2800.5,3.57040845]
[1769718005211,12.99521773,2801.1,2800.5,0.89269773]
[1769718005754,12.9130235,2801.1,2800.5,0.89269773]
[1769718006551,12.9130235,2801.1,2800.4,3.57082211]
[1769718006746,12.9130235,2801.1,2799.7,3.5717905]
[1769718008236,12.99521773,2801.0,2799.7,3.5717905]
[1769718008436,0.08219423,2800.8,2799.7,3.5717905]
[1769718009030,12.99521773,2801.0,2799.5,3.57181126]
[1769718009646,0.08219423,2800.8,2799.5,3.57181126]
[1769718009832,12.99521773,2801.0,2799.5,3.57181126]
[1769718014058,12.9130235,2800.7,2799.4,3.57210218]
[1769718015938,12.9130235,2800.7,2799.6,0.002]
[1769718019172,0.89255231,2801.0,2799.6,12.83928679]
[1769718019872,0.89255231,2801.0,2799.7,0.89295281]
[1769718020675,12.99521773,2800.8,2799.7,0.89295281]
[1769718021968,12.9130235,2800.8,2799.6,3.57381126]
[1769718022677,0.9747396,2801.0,2799.6,16.41109805]
[1769718023141,13.8877631,2801.0,2799.6,12.83928679]
[1769718023342,12.99521773,2800.7,2799.6,0.002]
[1769718023538,12.9130235,2800.7,2799.6,0.002]
[1769718023742,12.99521773,2800.6,2799.6,0.002]
[1769718023944,13.80572123,2800.5,2799.6,0.002]
[1769718024168,12.9130235,2800.5,2799.6,0.002]
[1769718025579,0.89265586,2800.7,2799.6,0.002]
[1769718025991,14.32018612,2800.7,2799.6,0.002]